bitfinex/quotes_ETHUSD_20230404
["timestamp","ask_amount","ask_price","bid_price","bid_amount"]
[1680652189825,6.3860156,1868.9,1868.6,0.87819168]
[1680652190029,6.3880156,1868.9,1868.6,0.87819168]
[1680652190450,8.10063716,1868.9,1868.6,0.87819168]
[1680652193722,10.86665934,1868.9,1868.6,0.87819168]
[1680652193924,10.86665934,1868.9,1868.6,0.15573168]
[1680652194123,10.86665934,1868.9,1868.6,0.39655168]
[1680652195525,2.76602218,1868.8,1868.6,0.39655168]
[1680652195728,0.27660222,1868.7,1868.6,0.39655168]
[1680652195929,5.651,1868.8,1868.6,0.87819168]
[1680652198869,5.66,1868.8,1868.6,0.87819168]
[1680652199073,5.651,1868.8,1868.6,0.87819168]
[1680652205563,5.64718152,1868.8,1868.6,0.87819168]
[1680652212072,6.29318152,1868.8,1868.6,0.87819168]
[1680652212543,0.648,1868.8,1868.6,0.87819168]
[1680652212880,0.0930156,1868.9,1868.7,0.08781917]
[1680652213034,0.0930156,1868.9,1868.8,0.72238]
[1680652213468,0.0930156,1868.9,1868.8,0.87521142]
[1680652213632,0.0930156,1868.9,1868.8,0.72238]
[1680652223584,0.0930156,1868.9,1868.8,0.87521142]
[1680652227197,0.0891373,1868.9,1868.8,0.87521142]
[1680652232611,0.0891373,1868.9,1868.8,0.93843617]
[1680652234698,0.0891373,1868.9,1868.8,0.45684617]
[1680652247244,0.0891373,1868.9,1868.8,0.93843617]
[1680652252049,0.08675434,1868.9,1868.8,0.93843617]
[1680652258050,0.08675434,1868.9,1868.8,0.93587059]
[1680652259960,10.10805196,1868.9,1868.8,0.21605617]
[1680652260138,10.11005196,1868.9,1868.8,0.21605617]
[1680652260929,10.11905196,1868.9,1868.8,0.21605617]
[1680652262859,9.47305196,1868.9,1868.8,0.21605617]
[1680652263565,0.82802978,1868.9,1868.8,0.21605617]
[1680652263727,0.08675434,1868.9,1868.8,0.45684617]
[1680652265952,0.08675434,1868.9,1868.8,0.21605617]
[1680652267763,0.08675434,1868.9,1868.8,0.45684617]
[1680652272373,0.08675434,1868.9,1868.8,0.93843617]
[1680652279773,0.08675434,1868.9,1868.8,0.96036508]
[1680652279950,0.0833757,1868.9,1868.8,1.95860907]
[1680652281826,0.0833757,1868.9,1868.8,4.72463125]
[1680652281995,0.0833757,1868.9,1868.8,7.72463125]
[1680652282169,0.0833757,1868.9,1868.8,7.72663125]
[1680652283188,0.0833757,1868.9,1868.8,7.00425125]
[1680652283352,0.0833757,1868.9,1868.8,7.72663125]
[1680652283876,0.0833757,1868.9,1868.8,4.93868016]
[1680652284079,0.0833757,1868.9,1868.8,4.93668016]
[1680652287397,0.0833757,1868.9,1868.8,4.95860907]
[1680652287963,0.0833757,1868.9,1868.8,4.23622907]
[1680652288174,0.0833757,1868.9,1868.8,4.95860907]
[1680652289419,0.0833757,1868.9,1868.8,5.50157905]
[1680652289619,0.0833757,1868.9,1868.8,5.50357905]
[1680652293267,0.0833757,1868.9,1868.8,4.96060907]
[1680652293463,0.0833757,1868.9,1868.8,4.95860907]
[1680652300664,0.0833757,1868.9,1868.8,7.72463125]
[1680652300870,0.0833757,1868.9,1868.8,4.96060907]
[1680652301095,0.0809455,1868.9,1868.8,4.95860907]
[1680652322784,0.0809455,1868.9,1868.8,4.95860907]
[1680652324143,0.0809455,1868.9,1868.8,3.93843617]
[1680652325670,0.07869166,1868.9,1868.8,3.93843617]
[1680652331776,0.07869166,1868.9,1868.8,3.93451176]
[1680652335800,0.07869166,1868.9,1868.8,4.45966874]
[1680652336162,0.07869166,1868.9,1868.8,3.93451176]
[1680652336361,0.07869166,1868.9,1868.8,5.17958394]
[1680652336660,0.07869166,1868.9,1868.8,5.18158394]
[1680652339260,0.07869166,1868.9,1868.8,3.93651176]
[1680652339460,0.07869166,1868.9,1868.8,3.93451176]
[1680652354147,0.07618994,1868.9,1868.8,3.93451176]
[1680652370306,0.07618994,1868.9,1868.8,6.57132995]
[1680652370601,0.07618994,1868.9,1868.8,6.57332995]
[1680652378389,0.07418682,1868.9,1868.8,6.57332995]
[1680652387342,0.07418682,1868.9,1868.8,8.08248395]
[1680652393240,0.07418682,1868.9,1868.8,6.57332995]
[1680652397218,0.71818682,1868.9,1868.8,3.57332995]
[1680652397417,1.35918682,1868.9,1868.8,3.57132995]
[1680652397616,1.35918682,1868.9,1868.8,0.93451176]
[1680652397828,1.6348055,1868.9,1868.8,0.93451176]
[1680652398753,1.63237448,1868.9,1868.8,0.93451176]
[1680652402023,0.98837448,1868.9,1868.8,0.93451176]
[1680652411418,0.98837448,1868.9,1868.8,0.93164839]
[1680652422106,1.63437448,1868.9,1868.8,0.93164839]
[1680652425314,0.99337448,1868.9,1868.8,0.93164839]
[1680652426931,0.94337448,1868.9,1868.8,0.93164839]
[1680652429990,0.6677558,1868.9,1868.8,0.93164839]
[1680652436344,0.6677558,1868.9,1868.8,0.45005839]
[1680652450325,0.6677558,1868.9,1868.8,0.20926839]
[1680652450862,0.66467301,1868.9,1868.8,0.20926839]
[1680652451076,0.66467301,1868.9,1868.8,0.45005839]
[1680652455481,0.01867301,1868.9,1868.8,0.45005839]
[1680652464994,0.09614031,1868.9,1868.8,0.45005839]
[1680652473539,0.01867301,1868.9,1868.8,0.93164839]
[1680652473678,0.01867301,1868.9,1868.8,6.56944839]
[1680652473874,0.01867301,1868.9,1868.8,9.57144839]
[1680652474076,7.301e-05,1868.9,1868.8,9.57144839]
[1680652474326,0.11000001,1869.0,1868.8,20.26574753]
[1680652474526,0.11000001,1869.0,1868.9,3.0]
[1680652474850,0.11000001,1869.0,1868.9,7.0933]
[1680652474994,0.11000001,1869.0,1868.9,7.0953]
[1680652475331,0.11000001,1869.0,1868.9,7.11722773]
[1680652475628,0.0905846,1869.0,1868.9,9.48308726]
[1680652476669,0.07125009,1869.0,1868.9,9.67643234]
[1680652477072,0.07125009,1869.0,1868.9,12.44245452]
[1680652477721,0.05199614,1869.0,1868.9,12.44245452]
[1680652478310,0.11000001,1869.1,1869.0,0.5]
[1680652478511,0.11000001,1869.1,1869.0,5.99287763]
[1680652478851,0.11000001,1869.2,1869.0,14.64387763]
[1680652479149,0.11000001,1869.2,1869.1,5.76602218]
[1680652479422,1e-08,1869.2,1869.1,7.45331218]
[1680652479622,1e-08,1869.2,1869.1,8.96399794]
[1680652481099,1e-08,1869.2,1869.1,23.49009794]
[1680652483592,1e-08,1869.2,1869.1,23.6805626]
[1680652485728,0.11000001,1869.9,1869.2,0.02192421]
[1680652486050,0.11000001,1870.3,1869.7,3.26602218]
[1680652486253,1.39496945,1871.0,1869.7,3.26602218]
[1680652486254,0.2111838,1870.5,1870.1,2.76602218]
[1680652486424,0.011,1871.2,1870.4,0.643]
[1680652486752,0.011,1871.2,1870.2,18.19767]
[1680652486753,0.644,1871.1,1870.6,4.08948]
[1680652487049,0.646,1870.9,1870.6,1.68389]
[1680652487408,0.655,1871.1,1870.6,1.68389]
[1680652487634,0.0655,1871.0,1870.6,1.68389]
[1680652487837,0.642,1870.9,1870.6,1.68389]
[1680652488256,0.645,1870.9,1870.6,1.68389]
[1680652488551,0.651,1870.9,1870.6,0.72166]
[1680652490954,0.492,1870.9,1870.6,0.72166]
[1680652491119,1.17745,1870.9,1870.6,0.72166]
[1680652491315,0.68545,1870.9,1870.6,0.72166]
[1680652491554,0.002,1871.1,1870.6,0.72166]
[1680652491733,37.4689,1871.3,1870.6,0.74356781]
[1680652491916,0.646,1871.1,1870.6,0.74356781]
[1680652492111,40.24392218,1871.3,1870.6,0.74356781]
[1680652492358,1.143,1871.1,1870.6,0.74356781]
[1680652493154,3.90902218,1871.1,1870.6,0.72166]
[1680652493614,3.90902218,1871.1,1870.7,0.16259609]
[1680652493814,3.90902218,1871.1,1870.7,0.40312609]
[1680652495053,3.90902218,1871.1,1870.7,0.88422609]
[1680652495357,1.143,1871.1,1870.7,1.84642609]
[1680652496320,1.143,1871.1,1870.7,1.84842609]
[1680652496760,1.143,1871.1,1870.7,1.85042609]
[1680652496962,1.143,1871.1,1870.7,0.88822609]
[1680652497256,1.143,1871.1,1870.7,0.88422609]
[1680652497418,0.1143,1871.0,1870.7,0.88422609]
[1680652500064,1.143,1870.9,1870.7,0.16259609]
[1680652500359,0.1143,1871.0,1870.7,0.88424609]
[1680652500727,2.88032218,1871.0,1870.7,0.88424609]
[1680652500973,0.28803222,1870.9,1870.7,0.88424609]
[1680652503173,0.002,1871.1,1870.7,0.88424609]
[1680652503477,1.143,1871.4,1870.7,0.88424609]
[1680652504338,1.093,1871.4,1870.7,0.88624609]
[1680652504543,0.1093,1871.3,1870.7,0.89024609]
[1680652504738,0.1093,1871.3,1870.7,0.88424609]
[1680652504940,0.1093,1871.3,1870.7,0.89024609]
[1680652505550,1.093,1871.4,1870.8,0.02190547]
[1680652505775,4.7051,1871.5,1870.8,0.02790547]
[1680652505962,4.7031,1871.5,1871.0,1.68357]
[1680652506278,0.0089661,1871.6,1871.0,1.68957]
[1680652506279,0.47031,1871.4,1871.0,1.68957]
[1680652506485,1.1499661,1871.6,1871.0,1.68957]
[1680652506640,0.73196267,1872.5,1871.6,2.82604]
[1680652506841,0.003,1872.3,1872.0,1.143]
[1680652507040,0.22094267,1872.5,1872.1,1.68255]
[1680652507296,0.22094267,1872.5,1872.2,0.02188909]
[1680652507493,0.22094267,1872.5,1872.3,1.68241]
[1680652507794,0.11000001,1872.6,1872.3,4.94246209]
[1680652507942,0.11000001,1872.6,1872.3,1.93609991]
[1680652508283,0.11000001,1872.6,1872.4,2.76602218]
[1680652508484,0.11000001,1872.6,1872.5,8.89018218]
[1680652508780,0.11000001,1872.6,1872.5,7.12947822]
[1680652508938,0.11000001,1872.6,1872.5,3.12616]
[1680652509141,0.11000001,1872.6,1872.5,3.12416]
[1680652509449,0.11000001,1872.6,1872.5,0.24032]
[1680652510878,0.13188678,1872.6,1872.2,0.4807]
[1680652511039,0.25887546,1872.6,1872.3,0.24034]
[1680652512110,0.25887546,1872.6,1871.9,0.96155]
[1680652512287,0.25887546,1872.6,1872.2,0.24034]
[1680652512894,0.25887546,1872.6,1871.8,0.002]
[1680652512895,2.76602218,1872.5,1871.8,0.002]
[1680652513091,0.27660222,1872.4,1871.7,4.19977435]
[1680652513290,0.27660222,1872.4,1871.7,3.05677435]
[1680652513472,0.27660222,1872.4,1871.7,6.06321653]
[1680652513701,0.25887546,1872.6,1871.8,6.90902218]
[1680652514014,0.13188678,1872.6,1871.8,6.91102218]
[1680652514385,0.13188678,1872.6,1871.8,7.15142218]
[1680652514729,0.11000001,1872.6,1872.2,1.143]
[1680652514864,0.11000001,1872.6,1872.2,4.04735818]
[1680652515265,0.11000001,1872.6,1872.2,1.143]
[1680652515504,0.002,1873.2,1872.4,5.649]
[1680652515725,0.11000001,1873.7,1873.0,1.143]
[1680652515885,0.11000001,1873.7,1873.0,0.006]
[1680652516091,0.11000001,1873.7,1872.9,0.006]
[1680652516092,6.89700001,1873.7,1872.9,0.006]
[1680652516292,0.26689,1873.5,1872.9,0.004]
[1680652516519,1.136,1873.3,1872.8,0.006]
[1680652516734,5.91591,1873.3,1873.0,2.7]
[1680652516870,0.018,1872.6,1872.5,0.008]
[1680652517066,1.161,1872.6,1872.0,0.24638]
[1680652517305,0.1161,1872.5,1872.0,0.24637]
[1680652517482,0.1161,1872.5,1872.0,0.24038]
[1680652517703,0.1161,1872.5,1871.9,0.24039]
[1680652518018,0.1161,1872.5,1871.9,0.24038]
[1680652518019,0.1241,1872.5,1871.9,0.24038]
[1680652519381,0.008,1872.5,1872.0,2.76602218]
[1680652519581,0.008,1872.5,1872.1,0.24036]
[1680652519974,0.008,1872.5,1872.1,0.7211]
[1680652520173,0.026,1872.6,1872.1,0.7211]
[1680652521522,0.026,1872.6,1872.1,3.85772912]
[1680652521730,0.018,1872.6,1872.1,3.85772912]
[1680652523027,0.018,1872.6,1872.1,0.74299472]
[1680652523904,0.018,1872.6,1872.3,0.72102]
[1680652528225,0.018,1872.6,1872.0,0.002]
[1680652528226,1.978,1872.4,1872.0,0.002]
[1680652528372,1.986,1872.4,1871.9,0.24039]
[1680652528724,0.1978,1872.3,1871.9,1.68276]
[1680652528882,0.57856386,1872.4,1871.9,1.68276]
[1680652529204,0.63642025,1872.4,1871.9,1.68276]
[1680652529405,0.05785639,1872.4,1871.9,1.68276]
[1680652529596,0.018,1872.6,1871.9,0.72118]
[1680652529781,0.018,1872.6,1872.0,2.76602218]
[1680652530020,0.018,1872.6,1872.1,0.24036]
[1680652531972,0.018,1872.6,1872.1,0.7211]
[1680652532179,1.22386,1872.6,1872.1,0.7211]
[1680652533390,1.978,1872.5,1872.0,0.006]
[1680652533602,1.978,1872.5,1872.0,0.24038]
[1680652533798,1.978,1872.5,1872.0,0.004]
[1680652534117,0.1978,1872.4,1871.9,0.008]
[1680652534301,0.1978,1872.4,1872.0,0.24038]
[1680652534686,0.1978,1872.4,1871.8,0.48081]
[1680652535024,0.1978,1872.4,1871.9,0.24039]
[1680652535613,1.997,1872.3,1871.9,0.24039]
[1680652535776,0.1997,1872.2,1871.9,0.24039]
[1680652536983,0.1997,1872.2,1871.7,0.0278994]
[1680652537174,0.1997,1872.2,1871.7,0.2683094]
[1680652537378,0.1997,1872.2,1871.7,0.7491494]
[1680652537916,0.1997,1872.2,1871.7,0.2643094]
[1680652538208,0.1997,1872.2,1871.7,0.2623094]
[1680652538571,0.1997,1872.2,1871.8,0.18632765]
[1680652538787,0.46677,1872.2,1871.8,0.18632765]
[1680652538984,1.978,1872.0,1871.8,0.18632765]
[1680652539310,0.1978,1871.9,1871.8,0.18632765]
[1680652539711,0.26708,1872.1,1871.5,0.427189]
[1680652539912,3.03310218,1872.1,1871.5,0.667619]
[1680652540623,3.03310218,1872.1,1871.6,0.16359956]
[1680652540941,2.76602218,1872.1,1871.6,0.40402956]
[1680652541136,0.30331022,1872.0,1871.6,0.40402956]
[1680652542296,2.76602218,1871.9,1871.6,0.16359956]
[1680652542607,3.03314218,1871.9,1871.6,0.16359956]
[1680652543229,2.76602218,1871.9,1871.6,0.16359956]
[1680652544536,3.03313218,1871.9,1871.6,0.16359956]
[1680652544739,0.30331322,1871.8,1871.6,0.16359956]
[1680652545242,2.76602218,1871.7,1871.6,0.16359956]
[1680652545401,5.12661318,1871.7,1871.6,0.16359956]
[1680652545602,10.77761318,1871.7,1871.6,0.16359956]
[1680652546702,10.51048318,1871.7,1871.5,0.427189]
[1680652546899,3.29076132,1871.6,1871.5,0.277189]
[1680652547103,6.0567835,1871.6,1871.5,0.277189]
[1680652547352,6.0587835,1871.6,1871.5,0.277189]
[1680652548398,4.98102218,1871.6,1871.5,0.277189]
[1680652548617,4.97902218,1871.6,1871.5,0.277189]
[1680652551245,1.984,1871.7,1871.5,0.277189]
[1680652551416,1.982,1871.7,1871.5,0.277189]
[1680652551603,2.21133132,1871.7,1871.5,0.277189]
[1680652552937,2.21133132,1871.7,1871.3,0.03740721]
[1680652553745,2.21133132,1871.7,1871.4,0.16625341]
[1680652555849,4.9773535,1871.7,1871.4,0.16625341]
[1680652556022,5.2444835,1871.7,1871.4,0.16625341]
[1680652556368,0.52444835,1871.6,1871.4,0.16625341]
[1680652556547,0.79159835,1871.6,1871.4,0.16625341]
[1680652556927,2.76602218,1871.5,1871.4,0.16625341]
[1680652557133,4.74402218,1871.5,1871.4,0.16625341]
[1680652561279,1.978,1871.5,1871.4,0.40671341]
[1680652561483,1.978,1871.5,1871.4,0.16625341]
[1680652561666,1.978,1871.5,1871.4,0.40671341]
[1680652562178,2.21533132,1871.7,1871.4,0.40671341]
[1680652562376,0.22153313,1871.6,1871.4,0.16625341]
[1680652565982,0.22153313,1871.6,1871.4,0.16625341]
[1680652568366,2.98755531,1871.6,1871.4,0.16625341]
[1680652568883,2.76602218,1871.5,1871.4,0.16625341]
[1680652569106,4.76302218,1871.5,1871.4,0.16625341]
[1680652569307,5.26247771,1871.5,1871.4,0.16625341]
[1680652569508,5.27247771,1871.5,1871.4,0.16625341]
[1680652570065,5.26447771,1871.5,1871.4,0.16625341]
[1680652570719,10.9098943,1871.5,1871.4,0.16625341]
[1680652570917,11.1398943,1871.5,1871.4,0.16625341]
[1680652571697,11.1398943,1871.5,1871.3,0.03740721]
[1680652571878,3.32698943,1871.4,1871.3,0.03740721]
[1680652572085,6.09301161,1871.4,1871.3,0.03740721]
[1680652572278,6.09501161,1871.4,1871.3,0.03740721]
[1680652575831,4.11201161,1871.4,1871.3,0.03740721]
[1680652576028,4.11001161,1871.4,1871.3,0.03740721]
[1680652580139,6.37418161,1871.4,1871.3,0.03740721]
[1680652580439,6.37618161,1871.4,1871.3,0.03740721]
[1680652581212,12.02518161,1871.4,1871.3,0.03740721]
[1680652582622,12.01716631,1871.4,1871.3,0.03740721]
[1680652583369,14.96899631,1871.4,1871.3,0.03740721]
[1680652584631,15.23616631,1871.4,1871.3,0.03740721]
[1680652585233,14.96899631,1871.4,1871.3,0.03740721]
[1680652586147,15.23616631,1871.4,1871.3,0.03740721]
[1680652586352,14.97699631,1871.4,1871.3,0.03740721]
[1680652586553,15.24416631,1871.4,1871.3,0.03740721]
[1680652587071,9.75299631,1871.4,1871.3,0.03740721]
[1680652587269,10.89599631,1871.4,1871.3,0.03740721]
[1680652587573,11.16316631,1871.4,1871.3,0.03740721]
[1680652587949,10.89599631,1871.4,1871.3,0.03740721]
[1680652588270,11.16316631,1871.4,1871.3,0.03740721]
[1680652590792,10.89599631,1871.4,1871.3,0.03740721]
[1680652591092,11.16316631,1871.4,1871.3,0.03740721]
[1680652591289,10.89599631,1871.4,1871.3,0.03740721]
[1680652591496,11.16316631,1871.4,1871.3,0.03740721]
[1680652591677,14.38216631,1871.4,1871.3,0.03740721]
[1680652592256,17.38216631,1871.4,1871.3,0.03740721]
[1680652594007,17.91651631,1871.4,1871.3,0.03740721]
[1680652594800,22.85931631,1871.4,1871.3,0.03740721]
[1680652595984,23.99231631,1871.4,1871.3,0.03740721]
[1680652596394,23.45796631,1871.4,1871.3,0.03740721]
[1680652601423,23.46596631,1871.4,1871.3,0.03740721]
[1680652601597,23.45796631,1871.4,1871.3,0.03740721]
[1680652602021,22.32496631,1871.4,1871.3,0.03740721]
[1680652610026,22.05779631,1871.4,1871.3,0.03740721]
[1680652611317,22.32496631,1871.4,1871.3,0.03740721]
[1680652612513,22.85931631,1871.4,1871.3,0.03740721]
[1680652612827,22.32496631,1871.4,1871.3,0.03740721]
[1680652619157,23.40065679,1871.4,1871.3,0.03740721]
[1680652619358,23.93500679,1871.4,1871.3,0.03740721]
[1680652619561,25.41621063,1871.4,1871.3,0.03740721]
[1680652619964,23.93500679,1871.4,1871.3,0.03740721]
[1680652620413,24.86263235,1871.4,1871.3,0.03740721]
[1680652620565,25.41621026,1871.4,1871.3,0.03740721]
[1680652621288,8.868,1871.2,1870.8,0.1]
[1680652621602,12.77502218,1870.9,1870.8,0.1]
[1680652621774,12.77702218,1870.9,1870.8,0.1]
[1680652621975,13.00702218,1870.9,1870.8,0.1]
[1680652623630,13.27427218,1870.9,1870.8,0.1]
[1680652623774,14.6551464,1870.9,1870.8,0.1]
[1680652627318,15.18968552,1870.9,1870.8,0.1]
[1680652630620,18.18968552,1870.9,1870.8,0.1]
[1680652630831,18.72418552,1870.9,1870.8,0.1]
[1680652638911,23.72418552,1870.9,1870.8,0.1]
[1680652639534,23.85571534,1870.9,1870.8,0.1]
[1680652641266,23.85622802,1870.9,1870.8,0.1]
[1680652641473,18.85322802,1870.9,1870.8,0.1]
[1680652642893,18.86122802,1870.9,1870.8,0.1]
[1680652643379,18.85322802,1870.9,1870.8,0.1]
[1680652645362,19.90680366,1870.9,1870.8,0.1]
[1680652646071,19.89880366,1870.9,1870.8,0.1]
[1680652647174,19.40280366,1870.9,1870.8,0.1]
[1680652648777,19.41080366,1870.9,1870.8,0.1]
[1680652649076,19.40280366,1870.9,1870.8,0.1]
[1680652655505,18.86830366,1870.9,1870.8,0.1]
[1680652657069,18.87630366,1870.9,1870.8,0.1]
[1680652657269,18.86830366,1870.9,1870.8,0.1]
[1680652657949,19.40280366,1870.9,1870.8,0.1]
[1680652659911,19.41080366,1870.9,1870.8,0.1]
[1680652660296,18.87630366,1870.9,1870.8,0.1]
[1680652660506,18.60905366,1870.9,1870.8,0.1]
[1680652660665,17.96405366,1870.9,1870.8,0.1]
[1680652661271,17.95605366,1870.9,1870.8,0.1]
[1680652661682,17.95209158,1870.9,1870.8,0.1]
[1680652663415,17.96009158,1870.9,1870.8,0.1]
[1680652664089,17.95209158,1870.9,1870.8,0.1]
[1680652666190,17.96009158,1870.9,1870.8,0.1]
[1680652666621,18.22734158,1870.9,1870.8,0.1]
[1680652667128,18.21934158,1870.9,1870.8,0.1]
[1680652667427,18.85834158,1870.9,1870.8,0.1]
[1680652669636,18.86634158,1870.9,1870.8,0.1]
[1680652669838,18.85834158,1870.9,1870.8,0.1]
[1680652671230,18.86634158,1870.9,1870.8,0.1]
[1680652671630,18.85834158,1870.9,1870.8,0.1]
[1680652672151,18.85834158,1870.9,1870.6,0.1]
[1680652672152,6.88583416,1870.8,1870.6,0.1]
[1680652672305,16.42029218,1870.7,1870.6,0.1]
[1680652672504,16.15502218,1870.7,1870.6,0.1]
[1680652673309,16.42229218,1870.7,1870.6,0.1]
[1680652675016,16.43029218,1870.7,1870.6,0.1]
[1680652675224,20.45801535,1870.7,1870.6,0.1]
[1680652678109,20.46601535,1870.7,1870.6,0.1]
[1680652678852,20.45801535,1870.7,1870.6,0.1]
[1680652682059,19.81301535,1870.7,1870.6,0.1]
[1680652682851,19.54574535,1870.7,1870.6,0.1]
[1680652683155,19.81301535,1870.7,1870.6,0.1]
[1680652686198,20.99556535,1870.7,1870.6,0.1]
[1680652686346,20.99256535,1870.7,1870.6,0.1]
[1680652689240,20.45801535,1870.7,1870.6,0.1]
[1680652689471,19.58301535,1870.7,1870.6,0.1]
[1680652689890,15.67174535,1870.7,1870.6,0.1]
[1680652690090,11.63602218,1870.7,1870.6,0.1]
[1680652691891,11.86602218,1870.7,1870.6,0.1]
[1680652695378,11.86902218,1870.7,1870.6,0.1]
[1680652695579,11.87402218,1870.7,1870.6,0.1]
[1680652696404,11.86602218,1870.7,1870.6,0.1]
[1680652696600,13.0526244,1870.7,1870.6,0.1]
[1680652697819,13.0606244,1870.7,1870.6,0.1]
[1680652698423,13.0526244,1870.7,1870.6,0.1]
[1680652700708,13.0606244,1870.7,1870.6,0.1]
[1680652702310,13.0526244,1870.7,1870.6,0.1]
[1680652703756,13.0606244,1870.7,1870.6,0.1]
[1680652704061,13.0526244,1870.7,1870.6,0.1]
[1680652704211,16.0526244,1870.7,1870.6,0.1]
[1680652705332,16.3198944,1870.7,1870.6,0.1]
[1680652705529,16.0526244,1870.7,1870.6,0.1]
[1680652709813,16.3198944,1870.7,1870.6,0.1]
[1680652710012,16.0526244,1870.7,1870.6,0.1]
[1680652710645,21.3198944,1870.7,1870.6,0.1]
[1680652715927,21.3278944,1870.7,1870.6,0.1]
[1680652716431,21.3198944,1870.7,1870.6,0.1]
[1680652717265,21.0526244,1870.7,1870.6,0.1]
[1680652718440,21.0546244,1870.7,1870.6,0.1]
[1680652718781,21.0526244,1870.7,1870.6,0.1]
[1680652721086,21.0606244,1870.7,1870.6,0.1]
[1680652721586,21.0526244,1870.7,1870.6,0.1]
[1680652722765,11.86602218,1870.7,1870.6,0.1]
[1680652731171,11.87402218,1870.7,1870.6,0.1]
[1680652731384,11.86602218,1870.7,1870.6,0.1]
[1680652732176,12.51102218,1870.7,1870.6,0.1]
[1680652732911,12.51902218,1870.7,1870.6,0.1]
[1680652733076,13.8536504,1870.7,1870.6,0.1]
[1680652736026,20.60246549,1870.7,1870.6,0.09646398]
[1680652736337,23.60246549,1870.7,1870.6,0.09646398]
[1680652736824,23.61046549,1870.7,1870.6,0.09646398]
[1680652737997,23.34319549,1870.7,1870.6,0.09646398]
[1680652738197,14.64402218,1870.7,1870.6,0.09646398]
[1680652739331,14.63602218,1870.7,1870.6,0.09646398]
[1680652740034,14.86602218,1870.7,1870.6,0.09646398]
[1680652741358,15.13329218,1870.7,1870.6,0.09646398]
[1680652741550,14.86602218,1870.7,1870.6,0.09646398]
[1680652741875,16.70277919,1870.7,1870.6,0.09646398]
[1680652742678,17.63072131,1870.7,1870.6,0.09646398]
[1680652742819,17.63872131,1870.7,1870.6,0.09646398]
[1680652743023,18.18429922,1870.7,1870.6,0.09646398]
[1680652743462,17.91702922,1870.7,1870.6,0.09646398]
[1680652743824,17.36345131,1870.7,1870.6,0.09646398]
[1680652744439,17.91702922,1870.7,1870.6,0.09646398]
[1680652747660,18.18429922,1870.7,1870.6,0.09646398]
[1680652747864,18.19229922,1870.7,1870.6,0.09646398]
[1680652748168,18.18429922,1870.7,1870.6,0.09646398]
[1680652748467,17.91702922,1870.7,1870.6,0.09646398]
[1680652748867,18.18429922,1870.7,1870.6,0.09646398]
[1680652749067,17.91702922,1870.7,1870.6,0.09646398]
[1680652750562,18.18429922,1870.7,1870.6,0.09646398]
[1680652750748,17.91702922,1870.7,1870.6,0.09646398]
[1680652750949,18.18429922,1870.7,1870.6,0.09646398]
[1680652751149,17.91702922,1870.7,1870.6,0.09646398]
[1680652751362,18.18429922,1870.7,1870.6,0.09646398]
[1680652751535,17.91702922,1870.7,1870.6,0.09646398]
[1680652751974,18.18429922,1870.7,1870.6,0.09646398]
[1680652752581,17.91702922,1870.7,1870.6,0.09646398]
[1680652752785,18.18429922,1870.7,1870.6,0.09646398]
[1680652753281,17.91702922,1870.7,1870.6,0.09646398]
[1680652753970,17.92502922,1870.7,1870.6,0.09646398]
[1680652754773,17.92002922,1870.7,1870.6,0.09646398]
[1680652754967,17.91702922,1870.7,1870.6,0.09646398]
[1680652756382,17.91902922,1870.7,1870.6,0.09646398]
[1680652756546,17.91702922,1870.7,1870.6,0.09646398]
[1680652756877,18.18429922,1870.7,1870.6,0.09646398]
[1680652759544,18.18729922,1870.7,1870.6,0.09646398]
[1680652759744,18.19229922,1870.7,1870.6,0.09646398]
[1680652760187,18.18429922,1870.7,1870.6,0.09646398]
[1680652763287,17.91702922,1870.7,1870.6,0.09646398]
[1680652764685,18.18429922,1870.7,1870.6,0.09646398]
[1680652764873,18.19229922,1870.7,1870.6,0.09646398]
[1680652765443,18.46108818,1870.7,1870.6,0.09646398]
[1680652765658,18.19381818,1870.7,1870.6,0.09646398]
[1680652767070,18.75448687,1870.7,1870.6,0.09646398]
[1680652768183,17.92412,1870.7,1870.6,0.09646398]
[1680652772541,18.19139,1870.7,1870.6,0.09646398]
[1680652772734,18.75448687,1870.7,1870.6,0.09646398]
[1680652772908,17.92412,1870.7,1870.6,0.09646398]
[1680652773108,18.75448687,1870.7,1870.6,0.09646398]
[1680652773311,18.19139,1870.7,1870.6,0.09646398]
[1680652773508,17.92412,1870.7,1870.6,0.09646398]
[1680652773722,18.75448687,1870.7,1870.6,0.09646398]
[1680652773922,18.19381818,1870.7,1870.6,0.09646398]
[1680652774523,18.75454159,1870.7,1870.6,0.09646398]
[1680652774738,18.19381818,1870.7,1870.6,0.09646398]
[1680652775112,16.12468422,1870.7,1870.6,0.09646398]
[1680652775311,16.39195422,1870.7,1870.6,0.09646398]
[1680652776246,17.22232109,1870.7,1870.6,0.09646398]
[1680652776460,17.45232109,1870.7,1870.6,0.09646398]
[1680652776619,17.45233225,1870.7,1870.6,0.09646398]
[1680652776814,18.86714527,1870.7,1870.6,0.09646398]
[1680652777151,19.42787522,1870.7,1870.6,0.09646398]
[1680652777509,18.86714527,1870.7,1870.6,0.09646398]
[1680652778251,19.42788974,1870.7,1870.6,0.09646398]
[1680652778951,18.86714527,1870.7,1870.6,0.09646398]
[1680652779451,19.42788677,1870.7,1870.6,0.09646398]
[1680652779751,19.4278859,1870.7,1870.6,0.09646398]
[1680652779954,18.86714527,1870.7,1870.6,0.09646398]
[1680652782053,19.50714527,1870.7,1870.6,0.09646398]
[1680652782549,19.51214527,1870.7,1870.6,0.09646398]
[1680652782714,19.24787527,1870.7,1870.6,0.09646398]
[1680652782916,17.04233117,1870.7,1870.6,0.09646398]
[1680652783148,16.40233117,1870.7,1870.6,0.09646398]
[1680652783455,16.9631075,1870.7,1870.6,0.09646398]
[1680652784010,16.95145599,1870.7,1870.6,0.09646398]
[1680652784211,16.12108912,1870.7,1870.6,0.09646398]
[1680652784455,16.95145599,1870.7,1870.6,0.09646398]
[1680652784958,17.18145599,1870.7,1870.6,0.09646398]
[1680652786553,19.01115946,1870.7,1870.6,0.09646398]
[1680652786752,19.09038313,1870.7,1870.6,0.09646398]
[1680652786957,19.35765313,1870.7,1870.6,0.09646398]
[1680652789674,19.09038313,1870.7,1870.6,0.09646398]
[1680652790279,19.65121058,1870.7,1870.6,0.09646398]
[1680652790443,18.45038313,1870.7,1870.6,0.09646398]
[1680652790642,17.18150182,1870.7,1870.6,0.09646398]
[1680652790985,16.35113495,1870.7,1870.6,0.09646398]